bitfinex/quotes_ETHUSD_20250715
["timestamp","ask_amount","ask_price","bid_price","bid_amount"]
[1752585627269,0.9749,3024.5,3024.2,3.30659133]
[1752585627819,0.9749,3024.5,3024.1,3.30672007]
[1752585628025,0.9749,3024.5,3023.9,5.5108]
[1752585628172,0.9749,3024.5,3024.4,3.30644094]
[1752585628368,0.002,3024.6,3024.5,3.30633162]
[1752585631710,0.002,3024.6,3024.5,8.65133162]
[1752585632289,0.002,3024.6,3024.5,8.81613162]
[1752585632485,0.002,3024.6,3024.5,9.57723162]
[1752585632695,0.002,3024.6,3024.5,10.86559888]
[1752585633416,0.002,3024.6,3024.5,5.52059888]
[1752585633596,0.002,3024.6,3024.5,3.47113162]
[1752585633808,0.002,3024.6,3024.5,8.81513162]
[1752585635189,0.002,3024.6,3024.5,8.81413162]
[1752585636815,0.002,3024.6,3024.5,3.47113162]
[1752585637017,0.002,3024.6,3024.5,8.81413162]
[1752585637391,0.002,3024.6,3024.4,3.30644094]
[1752585637392,0.002,3024.6,3024.4,3.30643524]
[1752585637713,0.002,3024.6,3023.4,3.30747048]
[1752585637714,1.07944,3024.6,3024.1,8.81352604]
[1752585637916,30.0,3024.5,3024.1,0.1648]
[1752585638125,30.0,3024.5,3024.0,5.341]
[1752585638636,10.0,3024.4,3023.9,8.64793075]
[1752585638782,3.30646391,3024.4,3023.9,8.64793075]
[1752585639184,10.002,3024.6,3023.9,5.341]
[1752585639517,10.0,3024.4,3024.1,3.30674158]
[1752585639715,10.0,3024.4,3024.0,3.30680959]
[1752585639937,1.07724,3024.5,3023.9,5.341]
[1752585640076,0.002,3024.6,3023.9,5.341]
[1752585640281,0.002,3024.6,3024.3,3.30652119]
[1752585641216,0.002,3024.6,3024.4,3.30638724]
[1752585641385,10.0,3024.5,3024.0,3.30681202]
[1752585641720,3.30634396,3024.5,3024.0,3.30681202]
[1752585642016,0.73848619,3024.5,3024.0,3.30681202]
[1752585642224,0.73848619,3024.5,3024.2,3.30659989]
[1752585642584,10.0,3024.4,3024.0,3.30685838]
[1752585642811,0.73848619,3024.5,3023.9,8.64797921]
[1752585643120,0.73848619,3024.5,3024.1,3.30675067]
[1752585643510,10.73848619,3024.5,3023.9,5.341]
[1752585643714,1.40467171,3024.4,3024.0,3.3068783]
[1752585644021,30.0,3024.3,3024.0,3.30686159]
[1752585644227,10.0,3024.3,3024.0,3.30686159]
[1752585644402,10.73848619,3024.5,3024.1,3.30676295]
[1752585644730,10.73848619,3024.5,3023.9,0.001]
[1752585645028,10.73848619,3024.5,3024.2,3.30659866]
[1752585645227,10.73848619,3024.5,3024.0,3.3068783]
[1752585645427,10.73848619,3024.5,3024.1,3.30675031]
[1752585645728,10.73848619,3024.5,3024.0,3.3068783]
[1752585645927,10.73848619,3024.5,3024.1,3.30676895]
[1752585646131,10.73848619,3024.5,3024.2,3.30657514]
[1752585646327,10.73848619,3024.5,3024.2,3.30657661]
[1752585646691,10.73848619,3024.5,3024.0,3.30682222]
[1752585646997,10.73848619,3024.5,3024.1,3.30672561]
[1752585647325,10.73848619,3024.5,3024.2,3.30665443]
[1752585647488,10.73848619,3024.5,3023.9,0.03406987]
[1752585647489,10.73848619,3024.5,3024.3,3.30648755]
[1752585647696,10.73848619,3024.5,3024.0,3.30684147]
[1752585647945,10.73848619,3024.5,3024.1,3.30669609]
[1752585648098,41.77284862,3024.4,3023.9,0.1658]
[1752585648300,3.30671967,3024.2,3023.9,0.001]
[1752585648646,0.1648,3024.0,3023.9,0.001]
[1752585649028,14.2483783,3024.0,3023.9,0.001]
[1752585649212,44.2483783,3024.0,3023.9,0.001]
[1752585649417,41.9157628,3024.0,3023.9,0.001]
[1752585649746,10.1648,3024.0,3023.9,0.001]
[1752585649899,0.1648,3024.0,3023.9,3.30798766]
[1752585650104,10.0,3024.3,3024.0,3.30678854]
[1752585650305,10.0,3024.3,3023.9,3.47273837]
[1752585650506,10.0,3024.3,3023.9,0.1658]
[1752585650739,0.002,3024.6,3024.5,3.30633162]
[1752585650942,0.002,3024.6,3024.5,3.63696478]
[1752585651146,0.002,3024.6,3024.2,3.47137343]
[1752585651319,0.002,3024.6,3024.2,5.5018]
[1752585651516,0.002,3024.6,3024.2,5.337]
[1752585651734,0.002,3024.6,3024.2,8.64363648]
[1752585651950,0.002,3024.6,3024.4,3.30633799]
[1752585652245,0.002,3024.6,3024.5,3.30633162]
[1752585652445,0.002,3024.6,3024.4,3.30638964]
[1752585652645,0.002,3024.6,3024.3,0.1648]
[1752585652805,0.9415,3024.5,3024.1,3.30670364]
[1752585653005,0.9415,3024.5,3024.1,8.64270364]
[1752585653344,0.9415,3024.5,3024.1,3.30670364]
[1752585653547,0.9415,3024.5,3024.0,0.1648]
[1752585653753,0.1648,3024.2,3023.9,0.001]
[1752585653909,0.1648,3024.2,3024.1,3.30676895]
[1752585654304,0.1648,3024.2,3024.0,3.30682706]
[1752585654509,0.1648,3024.2,3023.9,3.30794823]
[1752585654736,0.1648,3024.2,3024.0,3.30686109]
[1752585655125,0.1648,3024.2,3023.9,0.001]
[1752585655333,3.30655027,3024.3,3023.9,0.001]
[1752585655530,0.9389,3024.0,3023.9,0.001]
[1752585655726,4.2457783,3024.0,3023.9,0.001]
[1752585656419,0.9389,3024.0,3023.9,0.001]
[1752585658419,10.9389,3024.0,3023.9,0.001]
[1752585658735,44.2457783,3024.0,3023.9,0.001]
[1752585658937,45.63329028,3024.0,3023.9,0.001]
[1752585659133,42.32641198,3024.0,3023.9,0.001]
[1752585659333,12.32641198,3024.0,3023.9,0.001]
[1752585660851,45.63329028,3024.0,3023.9,0.001]
[1752585661161,46.18329028,3024.0,3023.9,0.001]
[1752585662028,50.96629028,3024.0,3023.9,0.001]
[1752585665977,45.63329028,3024.0,3023.9,0.001]
[1752585666271,50.96529028,3024.0,3023.9,0.001]
[1752585666487,47.65741198,3024.0,3023.9,0.001]
[1752585666641,5.4958,3024.0,3023.9,0.001]
[1752585666841,18.8026783,3024.0,3023.9,0.001]
[1752585667073,15.4958,3024.0,3023.9,0.001]
[1752585667778,10.1648,3024.0,3023.9,0.001]
[1752585667956,15.4958,3024.0,3023.9,0.001]
[1752585668151,10.1648,3024.0,3023.9,0.001]
[1752585668341,15.4958,3024.0,3023.9,0.001]
[1752585669165,10.0,3024.0,3023.9,3.30798766]
[1752585669368,0.1648,3024.3,3024.0,3.30677569]
[1752585669564,5.33,3024.2,3024.0,3.3068783]
[1752585669772,10.0,3024.2,3024.1,3.30676895]
[1752585669943,0.1648,3024.3,3024.2,3.30665961]
[1752585670270,10.0,3024.2,3024.0,3.3068156]
[1752585670444,10.1648,3024.3,3024.0,3.3068156]
[1752585671262,0.002,3024.5,3024.1,0.7884]
[1752585671552,0.002,3024.5,3024.4,3.30644094]
[1752585672282,0.002,3024.5,3024.2,0.1648]
[1752585672653,0.1668,3024.5,3024.0,0.1648]
[1752585672860,0.1668,3024.5,3024.0,3.47166155]
[1752585672861,5.4958,3024.5,3024.0,3.47166155]
[1752585673061,5.4958,3024.5,3024.0,0.1648]
[1752585673259,10.0,3024.4,3024.0,0.1648]
[1752585673568,10.0,3024.2,3023.9,0.001]
[1752585673917,0.1648,3024.2,3023.9,0.001]
[1752585674078,10.1648,3024.2,3023.9,0.001]
[1752585674284,0.1648,3024.2,3023.9,0.001]
[1752585675278,10.0,3024.4,3024.1,3.30676895]
[1752585675480,10.1648,3024.4,3024.0,4.11772158]
[1752585675843,10.1648,3024.4,3024.0,0.8109]
[1752585676646,10.1648,3024.4,3024.0,4.11772225]
[1752585676848,10.1648,3024.4,3024.0,0.8109]
[1752585677075,0.8206,3024.3,3023.9,0.1658]
[1752585677271,0.1648,3024.1,3023.9,0.001]
[1752585679276,18.6328238,3024.1,3023.9,0.001]
[1752585679485,43.3068783,3024.0,3023.9,0.001]
[1752585679694,14.00897418,3024.0,3023.9,0.001]
[1752585680013,44.83267418,3024.0,3023.9,0.001]
[1752585680237,47.37067418,3024.0,3023.9,1e-08]
[1752585680746,45.38267418,3024.0,3023.9,1e-08]
[1752585681078,3.30790645,3023.1,3022.9,0.001]
[1752585681276,5.4898,3023.0,3022.9,0.001]
[1752585681480,8.79777221,3023.0,3022.9,0.001]
[1752585682219,29.83237686,3023.0,3022.9,0.001]
[1752585682820,15.4898,3023.0,3022.9,0.001]
[1752585682977,10.1648,3023.0,3022.9,3.30908164]
[1752585683177,15.325,3023.0,3022.9,3.30908164]
[1752585683396,10.0,3023.0,3022.9,3.30908164]
[1752585683686,10.0,3023.4,3023.3,3.30756329]
[1752585683892,10.0,3023.4,3023.3,0.1648]
[1752585684107,5.324,3023.7,3023.5,3.30736875]
[1752585684315,5.4888,3023.8,3023.7,3.3072064]
[1752585684498,15.4888,3023.8,3023.7,3.3072064]
[1752585684695,10.0,3023.7,3023.6,3.30727896]
[1752585684898,5.4888,3023.8,3023.3,0.1648]
[1752585685125,10.0,3023.7,3023.5,3.3073402]
[1752585685334,10.0,3023.7,3023.6,3.30731578]
[1752585685633,0.1648,3024.3,3023.6,0.9734]
[1752585685805,0.002,3024.5,3024.3,3.30653455]
[1752585686020,10.1668,3024.5,3024.3,3.30653455]
[1752585686415,0.002,3024.5,3024.4,4.10974094]
[1752585686734,0.002,3024.5,3024.4,5.01947674]
[1752585686936,0.002,3024.5,3024.4,5.05254114]
[1752585687136,0.002,3024.5,3024.4,5.01947674]
[1752585687345,0.002,3024.5,3024.4,5.05254114]
[1752585690151,0.002,3024.5,3024.4,10.34047674]
[1752585690356,0.002,3024.5,3024.4,4.27454094]
[1752585690631,0.002,3024.5,3024.4,4.30760534]
[1752585690799,0.002,3024.5,3024.4,4.27454094]
[1752585691000,0.002,3024.5,3024.4,4.30760534]
[1752585694011,0.002,3024.8,3024.6,0.7922]
[1752585694219,0.002,3024.8,3024.7,8.82297413]
[1752585694522,0.002,3024.8,3024.7,10.08205248]
[1752585695862,0.002,3024.8,3024.7,4.76305248]
[1752585696021,0.002,3024.8,3024.7,10.08105248]
[1752585696935,0.002,3024.8,3024.7,1.45693948]
[1752585697158,0.002,3024.8,3024.0,5.317]
[1752585697374,0.002,3024.8,3024.7,3.306113]
[1752585697663,0.002,3024.8,3024.7,3.33917413]
[1752585698716,0.002,3025.8,3024.7,3.33917413]
[1752585698919,0.002,3025.8,3024.9,0.55]
[1752585699228,0.002,3025.8,3025.7,3.30502032]
[1752585699623,0.002,3025.8,3025.6,0.03305129]
[1752585699822,0.002,3025.8,3025.5,3.30513714]
[1752585700017,0.002,3025.8,3025.7,3.30502032]
[1752585700380,0.002,3025.8,3025.6,3.30503366]
[1752585700581,0.002,3025.8,3025.5,5.316]
[1752585700877,0.002,3025.8,3025.6,0.03305129]
[1752585701027,0.002,3025.8,3025.7,3.30502032]
[1752585701920,0.002,3025.8,3025.5,5.316]
[1752585701921,0.002,3025.8,3025.6,3.30507959]
[1752585702121,0.002,3025.8,3025.7,3.30502032]
[1752585702677,0.002,3025.8,3025.6,3.30512663]
[1752585702678,0.002,3025.8,3025.5,5.315]
[1752585702886,0.002,3025.8,3024.9,3.3058944]
[1752585703178,0.002,3025.8,3025.3,3.30544504]
[1752585703380,0.002,3025.8,3025.4,5.314]
[1752585703576,3.30519922,3025.6,3024.8,0.8132]
[1752585703715,0.7973,3025.5,3024.9,8.61987707]
[1752585703920,0.7973,3025.5,3024.3,0.7962]
[1752585704151,30.0,3025.4,3024.3,0.7962]
[1752585704475,30.0,3025.4,3024.4,8.65345632]
[1752585704658,10.7973,3025.5,3024.8,3.3059327]
[1752585704968,0.7973,3025.5,3024.9,0.03305894]
[1752585705343,0.7973,3025.5,3025.2,3.30555953]
[1752585705678,0.7973,3025.5,3025.2,3.30555361]
[1752585706145,0.7973,3025.5,3025.0,5.313]
[1752585706344,0.7973,3025.5,3024.9,3.30579236]
[1752585706530,0.7973,3025.5,3025.0,3.30573596]
[1752585706736,0.7973,3025.5,3025.1,3.30567474]
[1752585707058,0.7973,3025.5,3025.1,3.47047474]
[1752585707223,0.7973,3025.5,3025.1,0.1648]
[1752585707424,0.1648,3025.7,3025.2,3.30556657]
[1752585707745,1.59208767,3025.7,3025.1,3.47043272]
[1752585707953,4.89714432,3025.7,3025.1,3.47043272]
[1752585708263,4.89714432,3025.7,3025.1,3.47045373]
[1752585708458,1.59208767,3025.7,3025.1,3.47045373]
[1752585708758,0.1648,3025.7,3025.3,3.30544179]
[1752585708973,0.1648,3025.7,3025.3,3.30535724]
[1752585709165,0.8012,3025.8,3025.4,3.30533566]
[1752585709468,0.8012,3025.8,3025.3,0.1648]
[1752585709469,30.0,3025.7,3025.3,0.1648]
[1752585710369,3.46992956,3025.6,3025.1,0.1648]
[1752585710522,0.1648,3025.6,3025.2,3.30555546]
[1752585711224,0.1648,3025.6,3025.1,0.19785675]
[1752585711431,0.002,3025.8,3025.6,3.30511146]
[1752585711821,0.002,3025.8,3025.5,0.1648]
[1752585712259,0.002,3025.8,3025.5,3.47000827]
[1752585712465,0.002,3025.8,3025.5,0.1648]
[1752585712765,0.7739,3025.6,3025.2,0.1648]
[1752585713129,0.7739,3025.6,3024.9,0.1648]
[1752585713130,3.47010237,3025.5,3024.9,0.1648]
[1752585713326,0.002,3025.8,3025.0,0.03305785]
[1752585713565,10.002,3025.8,3025.6,3.30511776]
[1752585713763,0.002,3025.8,3025.7,3.30502032]
[1752585714523,0.002,3025.8,3025.5,3.47000533]
[1752585714838,0.002,3025.8,3025.4,3.30530483]
[1752585715272,0.002,3025.8,3025.5,3.30522466]
[1752585715472,0.002,3025.8,3025.4,3.30527568]
[1752585716078,0.002,3025.8,3025.5,3.30523729]
[1752585716233,0.002,3025.8,3025.5,3.30518438]
[1752585716433,0.002,3025.8,3025.6,3.30507633]
[1752585716634,0.002,3025.8,3025.7,3.30502032]
[1752585716833,0.002,3025.8,3025.7,0.1648]
[1752585717250,0.002,3025.8,3025.7,3.46982032]
[1752585717451,0.002,3025.8,3025.7,0.1648]
[1752585718076,0.002,3025.8,3025.7,3.46982032]
[1752585718286,0.002,3025.8,3025.7,4.75513592]
[1752585718778,0.002,3025.8,3025.7,10.09618612]
[1752585718951,0.002,3025.8,3025.7,10.06313592]
[1752585719160,0.002,3025.8,3024.9,0.7693]
[1752585719367,0.002,3025.8,3021.9,7.43810275]
[1752585719368,0.002,3025.8,3025.7,3.30502032]
[1752585719568,0.002,3025.8,3025.7,3.33807052]
[1752585719978,0.002,3025.8,3025.5,4.07451283]
[1752585720480,0.002,3025.8,3025.5,0.7693]
[1752585720650,0.002,3025.8,3025.1,0.7731]
[1752585720857,0.7884,3025.7,3025.1,5.307]
[1752585721177,0.7884,3025.3,3024.8,3.30599674]
[1752585721366,4.09386332,3025.3,3024.8,3.30599674]
[1752585721539,4.09386332,3025.3,3024.7,3.306077]
[1752585721735,3.30613599,3024.7,3024.1,3.30669986]
[1752585722390,3.30589746,3024.9,3023.9,5.306]
[1752585722539,3.30589746,3024.9,3024.3,3.30647925]
[1752585722739,19.40142698,3025.0,3024.4,3.30642258]
[1752585723560,5.306,3024.9,3024.5,3.30632066]
[1752585724280,5.305,3025.2,3024.8,3.30591517]
[1752585724444,5.305,3025.2,3024.4,0.7965]
[1752585724445,9.37827293,3025.2,3024.6,3.30615666]
[1752585724768,10.0,3025.1,3024.7,3.30608535]
[1752585725139,10.0,3025.1,3024.7,3.30600389]
[1752585725341,10.0,3025.1,3024.9,3.30579035]
[1752585725573,10.0,3025.1,3024.8,3.3060037]
[1752585726084,13.30574755,3025.1,3024.5,3.3062537]
[1752585726303,21.02701503,3025.1,3024.3,5.305]
[1752585726447,0.754,3024.9,3024.3,8.61146519]
[1752585726798,10.0,3024.7,3024.3,5.305]
[1752585726995,3.30612362,3024.7,3024.2,3.30665535]
[1752585727143,10.0,3024.7,3024.1,3.30675494]
[1752585727343,10.0,3024.7,3024.1,3.30676895]
[1752585727581,10.0,3024.7,3024.2,3.3066284]
[1752585728085,9.3649311,3024.9,3024.4,3.30643881]
[1752585728279,0.1648,3024.8,3024.3,3.47130899]
[1752585730046,0.1648,3024.8,3024.4,3.30643061]
[1752585730446,0.1648,3024.8,3024.3,3.47130574]
[1752585731663,10.0,3024.7,3024.3,3.47130574]
[1752585731864,10.0,3024.7,3024.3,0.1648]
[1752585732287,10.0,3024.7,3024.5,3.3063105]
[1752585732499,10.0,3024.7,3024.5,0.1648]
[1752585733266,13.30611324,3024.7,3024.5,0.1648]
[1752585733794,24.33323734,3024.6,3024.5,0.1648]
[1752585733963,10.1648,3024.5,3023.9,0.1648]
[1752585734290,10.0,3024.3,3023.9,3.47173044]
[1752585734453,10.0,3024.3,3023.9,3.47177506]
[1752585734892,10.0,3024.3,3023.9,0.1648]
[1752585735088,11.67723439,3024.3,3023.9,0.1648]
[1752585735792,4.08344529,3024.2,3023.6,3.47206056]
[1752585735989,5.303,3024.1,3023.6,3.47206056]
[1752585736189,5.303,3024.1,3023.6,0.1648]
[1752585736383,8.60981494,3024.1,3023.6,0.1648]
[1752585736792,13.30689298,3024.0,3023.6,0.1648]
[1752585736965,3.30711599,3023.8,3023.5,0.001]
[1752585737173,5.303,3023.7,3023.5,0.001]
[1752585737796,3.30731578,3023.6,3023.5,0.001]
[1752585738013,30.9349,3023.6,3023.5,0.001]
[1752585738565,0.9349,3023.6,3023.5,0.001]
[1752585739069,10.9349,3023.6,3023.5,0.001]
[1752585740302,42.44733439,3023.6,3023.5,0.001]
[1752585740704,12.44733439,3023.6,3023.5,0.001]
[1752585740875,0.7542,3023.9,3023.5,3.30842516]
[1752585741209,10.0,3023.8,3023.6,3.30721058]
[1752585741405,10.0,3023.8,3023.5,0.001]
[1752585741620,5.302,3023.7,3023.5,0.001]
[1752585741917,15.302,3023.7,3023.6,3.30731578]
[1752585742265,10.0,3023.7,3023.6,3.30731578]
[1752585742462,7.83,3024.1,3024.0,3.3068783]
[1752585742696,23.131,3024.1,3024.0,3.3068783]
[1752585743087,0.9547,3024.3,3023.6,0.1648]
[1752585743294,5.302,3024.2,3024.1,3.30668669]
[1752585743701,5.302,3024.2,3024.0,0.1648]
[1752585743702,7.94,3024.6,3024.0,0.1648]
[1752585743911,10.0,3024.4,3024.3,3.30649154]
[1752585744208,0.7664,3024.7,3024.6,3.30622231]
[1752585744380,6.0674,3024.7,3024.5,3.30629582]
[1752585744587,6.0674,3024.7,3024.4,3.30639909]
[1752585744879,10.0,3024.6,3024.1,3.30671702]
[1752585745104,5.301,3024.5,3024.1,3.30671702]
[1752585745267,5.301,3024.5,3024.0,0.1648]
[1752585745473,30.0,3024.4,3024.0,0.1648]
[1752585745769,0.1648,3024.0,3023.6,3.30722177]
[1752585746220,0.1648,3024.0,3023.5,3.47317022]
[1752585746411,0.1648,3024.0,3023.5,0.1658]
[1752585746616,5.3,3023.9,3023.5,0.1658]
[1752585747106,5.3,3023.9,3023.5,3.47322068]
[1752585747484,11.02701503,3023.8,3023.5,0.1658]
[1752585747697,0.1648,3023.6,3023.5,0.001]
[1752585747902,5.3,3023.7,3023.5,0.001]
[1752585750009,5.3,3023.7,3023.5,3.30842438]
[1752585750184,5.3,3023.7,3023.5,0.001]
[1752585751113,13.47211578,3023.6,3023.5,0.001]
[1752585751816,10.1648,3023.6,3023.5,0.001]
[1752585751997,13.47211578,3023.6,3023.5,0.001]
[1752585753109,43.47211578,3023.6,3023.5,0.001]
[1752585754218,10.0,3023.2,3022.9,0.001]
[1752585754383,3.30797221,3023.0,3022.9,0.001]
[1752585754575,10.0,3023.0,3022.9,0.001]
[1752585754774,13.30797221,3023.0,3022.9,0.001]
[1752585754974,10.0,3023.0,3022.9,0.001]
[1752585755204,13.93643819,3023.0,3022.9,0.001]
[1752585755404,43.93643819,3023.0,3022.9,0.001]
[1752585756271,40.62846598,3023.0,3022.9,0.001]
[1752585756599,15.92646598,3023.0,3022.9,0.001]
[1752585756786,16.09126598,3023.0,3022.9,0.001]
[1752585757314,49.39923819,3023.0,3022.9,0.001]
[1752585758000,19.39823819,3023.0,3022.9,0.001]
[1752585758201,49.39823819,3023.0,3022.9,0.001]
[1752585758409,50.18543819,3023.0,3022.9,0.001]
[1752585759078,50.02063819,3023.0,3022.9,0.001]
[1752585761014,20.02063819,3023.0,3022.9,0.001]
[1752585761213,50.02063819,3023.0,3022.9,0.001]
[1752585761788,50.57063819,3023.0,3022.9,0.001]
[1752585761989,50.57063819,3023.0,3020.9,0.7551]
[1752585761990,3.85851943,3022.5,3020.9,0.7551]
[1752585762203,10.0,3021.5,3021.1,0.99183]
[1752585762420,5.296,3021.4,3021.1,0.99183]
[1752585763406,30.0,3021.3,3021.1,0.99183]
[1752585763581,15.296,3021.2,3021.1,0.99183]
[1752585763777,16.29388358,3021.2,3021.1,0.99183]
[1752585764135,0.7636,3021.6,3021.1,4.30188262]
[1752585764282,5.297,3021.5,3021.2,3.3099379]
[1752585764481,10.8273,3021.9,3021.2,3.30983893]
[1752585764482,0.8273,3021.9,3021.2,3.30983893]
[1752585764717,10.0,3021.8,3021.7,3.30929233]
[1752585765020,1.50596186,3022.9,3021.7,3.30929233]
[1752585765021,7.83,3023.0,3021.8,0.793]
[1752585765219,33.30808433,3022.9,3021.8,0.82609285]
[1752585765423,10.0,3022.7,3022.3,3.30873536]
[1752585765593,10.0,3022.7,3021.9,5.296]
[1752585765594,10.0,3022.5,3021.9,5.296]
[1752585765793,30.0,3022.4,3021.8,0.793]
[1752585765996,11.02701503,3021.9,3021.2,0.7928]
[1752585766211,40.0,3021.8,3021.4,3.30966487]
[1752585766426,40.0,3021.8,3021.6,3.30943846]
[1752585766427,10.0,3021.8,3021.6,3.30943846]
[1752585766828,10.0,3021.8,3021.2,0.7928]
[1752585766987,10.0,3021.6,3021.1,8.93683]
[1752585767189,10.0,3021.4,3021.1,0.99183]
[1752585767387,30.0,3021.3,3021.1,0.99183]
[1752585767732,10.0,3021.2,3021.1,0.99183]
[1752585767952,0.769,3021.3,3021.1,0.99183]
[1752585768456,10.0,3021.4,3021.1,0.99183]
[1752585768610,10.8331,3021.9,3021.4,3.30971118]
[1752585768813,0.7919,3022.2,3022.0,3.3090325]
[1752585769037,0.7919,3022.2,3021.4,0.66196542]
[1752585769038,0.1648,3022.2,3021.9,3.30907174]
[1752585769319,0.1648,3022.2,3021.8,3.30925254]
[1752585769514,0.1648,3022.2,3021.6,3.30947275]
[1752585769515,10.0,3022.0,3021.6,3.30947275]
[1752585769734,0.1648,3022.0,3021.7,3.30939494]
[1752585770017,0.1648,3022.0,3021.7,3.30939307]
[1752585770430,0.1648,3022.0,3021.5,3.47441325]
[1752585770431,0.1648,3022.0,3021.9,3.30917634]
[1752585771015,15.296,3022.4,3022.1,3.30890724]
[1752585771263,0.1648,3022.3,3022.1,3.30891113]
[1752585771588,0.1648,3022.3,3021.7,0.19789395]
[1752585771718,0.1648,3022.3,3022.2,3.30884785]
[1752585772839,10.0,3022.5,3022.4,3.30857756]
[1752585773042,0.1648,3022.7,3022.5,3.30847999]
[1752585773242,10.1648,3022.7,3022.5,3.30847999]
[1752585773574,10.1648,3022.7,3022.0,3.30903335]
[1752585773575,38.6034514,3022.6,3022.0,3.30906228]
[1752585773734,0.7943,3022.3,3021.9,0.1648]
[1752585774060,0.1648,3021.8,3021.1,0.99183]
[1752585774276,10.1648,3021.8,3021.5,3.30955038]
[1752585774576,10.1648,3021.8,3021.7,3.30939537]
[1752585774869,5.294,3022.2,3021.9,3.30912307]
[1752585775076,5.294,3022.2,3021.7,0.1648]
[1752585775386,0.1648,3022.1,3021.7,0.1648]
[1752585776048,0.1648,3022.1,3021.8,3.30922725]
[1752585776580,0.1648,3022.1,3021.7,3.47414613]
[1752585777149,10.1648,3022.1,3021.7,0.1648]
[1752585777362,10.0,3021.9,3021.4,3.30962983]
[1752585777570,5.4588,3021.8,3021.5,3.30959638]
[1752585777739,5.4588,3021.8,3021.6,3.30950266]
[1752585777941,0.1648,3021.8,3021.3,0.1648]
[1752585778298,10.0,3022.0,3021.6,0.1648]
[1752585778446,0.1648,3021.7,3021.2,0.9829]
[1752585778956,3.47429194,3021.7,3021.2,0.1648]
[1752585779282,10.0,3021.6,3021.2,0.1648]
[1752585779453,10.0,3021.4,3021.2,0.1648]
[1752585779654,0.1648,3021.5,3021.1,0.99183]
[1752585779997,0.1648,3021.5,3021.1,4.30183903]
[1752585780304,0.1648,3021.5,3021.1,0.99183]
[1752585780305,10.0,3021.3,3021.1,0.99183]
[1752585780600,0.1648,3021.2,3021.1,0.99183]
[1752585780760,13.47474306,3021.2,3021.1,0.99183]
[1752585780961,10.1648,3021.2,3021.1,0.99183]
[1752585781460,13.47474306,3021.2,3021.1,0.99183]
[1752585781786,14.09945286,3021.2,3021.1,0.99183]
[1752585782159,10.7895098,3021.2,3021.1,0.99183]
[1752585782799,14.09945286,3021.2,3021.1,0.99183]
[1752585782997,14.92965286,3021.2,3021.1,0.99183]
[1752585783148,16.9127098,3021.2,3021.1,0.99183]
[1752585783546,20.22265286,3021.2,3021.1,0.99183]
[1752585784191,50.22265286,3021.2,3021.1,0.99183]
[1752585785262,20.22265286,3021.2,3021.1,0.99183]
[1752585785579,15.4568,3021.2,3021.1,0.99183]
[1752585785740,10.0,3021.1,3021.0,0.001]
[1752585785940,0.8116,3022.0,3021.0,4.11846219]
[1752585786150,0.1648,3021.6,3021.1,0.1648]
[1752585786443,0.1648,3021.6,3021.2,3.3099048]
[1752585786672,10.1648,3021.6,3021.1,0.1648]
[1752585786972,13.47435044,3021.6,3021.1,3.47484092]
[1752585787281,11.71048,3021.6,3021.1,0.1648]
[1752585787448,11.71048,3021.6,3021.1,3.4748025]
[1752585787449,10.1648,3021.6,3021.1,3.4748025]
[1752585787654,13.47433912,3021.6,3021.1,3.4748025]
[1752585787876,10.1648,3021.6,3021.1,3.4748025]
[1752585788079,13.47436153,3021.6,3021.1,0.1648]
[1752585788280,10.1648,3021.6,3021.1,0.1648]
[1752585788465,10.1648,3021.6,3021.1,3.47480566]
[1752585788669,10.0,3021.4,3021.1,0.1648]
[1752585788868,10.0,3021.4,3021.1,3.47481757]
[1752585789076,0.1648,3021.6,3021.1,4.23416719]
[1752585789366,10.0,3021.4,3021.3,3.30975715]
[1752585789536,10.1648,3021.6,3021.2,3.29854373]
[1752585790039,5.291,3021.7,3021.4,3.30965595]
[1752585790244,0.1648,3021.8,3021.5,3.30954654]
[1752585790475,0.1648,3021.8,3021.7,3.30939537]
[1752585790678,0.1668,3022.1,3021.6,4.27969916]
[1752585790893,10.1668,3022.1,3021.6,0.9702]
[1752585791091,0.1668,3022.1,3021.6,0.9702]
[1752585791294,0.002,3022.1,3021.9,3.47391729]
[1752585791494,0.002,3022.1,3022.0,3.30906684]
[1752585792579,0.002,3022.1,3022.0,4.82035591]
[1752585792785,0.002,3022.1,3022.0,4.98515591]
[1752585792979,0.002,3022.1,3022.0,4.95206525]
[1752585793185,0.002,3022.1,3022.0,4.98515591]
[1752585794359,0.002,3022.1,3022.0,10.27515591]
[1752585794583,0.002,3022.1,3022.0,10.24206525]
[1752585794787,0.002,3022.1,3022.0,10.24106525]
[1752585794960,0.002,3022.1,3022.0,4.95206525]
[1752585795160,0.002,3022.1,3022.0,10.24106525]
[1752585796376,0.002,3022.1,3022.0,9.56276684]
[1752585798974,0.002,3022.1,3022.0,9.56076684]
[1752585801014,0.002,3022.1,3022.0,9.55976684]
[1752585801387,0.1648,3023.2,3022.6,0.8104]
[1752585801587,0.002,3023.4,3023.3,3.30764396]
[1752585802016,0.002,3023.4,3023.3,9.40404396]
[1752585802218,0.16858124,3023.9,3023.8,3.30709703]
[1752585802388,0.16858124,3023.9,3023.8,8.59309703]
[1752585802592,0.1648,3024.4,3024.2,3.30662156]
[1752585802791,0.002,3024.8,3024.3,8.59255027]
[1752585802993,0.1668,3024.8,3024.4,5.286]
[1752585803411,0.1668,3024.8,3024.4,3.30637424]
[1752585803622,0.51405897,3024.8,3024.4,3.30637424]
[1752585804091,0.51405897,3024.8,3024.4,3.30637841]
[1752585804294,0.1668,3024.8,3024.3,8.7562992]